Workbook

Sheet Лист1
A1: Школа | C1: МБОУ Калейкинская СОШ | F1: Утвердил: | G1: должность | H1: Директор
A2: Типовое примерное меню приготавливаемых блюд | G2: фамилия | H2: Фаттахов И.И
A3: Возрастная категория | E3: 7-11 лет | G3: дата | H3: 1 | I3: 9 | J3: 2023
H4: день | I4: месяц | J4: год
A5: Неделя | B5: День недели | C5: Прием пищи | D5: Раздел меню | E5: Блюда | F5: Вес блюда, г | G5: Белки | H5: Жиры | I5: Углеводы | J5: Калорийность | K5: № рецептуры | L5: Цена
A6: 1 | B6: 1 | C6: Завтрак | D6: Закуска | E6: Салат из моркови с яблоками | F6: 60 | G6: 0.64 | H6: 0.1 | I6: 5.11 | J6: 23.94 | K6: 59
D7: гор.блюдо | E7: Котлеты куриные | F7: 90 | G7: 8.75 | H7: 10.6 | I7: 16.03 | J7: 168 | K7: ТТК
E8: Макаронные изделия отварные с маслом сливочным | F8: 150/5 | G8: 5.12 | H8: 4.53 | I8: 31.99 | J8: 189.3 | K8: 203
D9: гор.напиток | E9: Компот из сухофруктов | F9: 200 | G9: 0.66 | H9: 0.09 | I9: 22.03 | J9: 92.9 | K9: 349
E10: Печенье | F10: 40 | G10: 3.7 | H10: 4.7 | I10: 4.85 | J10: 51.5
D11: хлеб | E11: Хлеб ржаной | F11: 20 | G11: 1.32 | H11: 0.24 | I11: 7.92 | J11: 39.6
D12: фрукты
D15: итого | F15: =SUM(F7:F14) -> 350 | G15: =SUM(G7:G14) -> 19.55 | H15: 20.16 | I15: 82.82 | J15: 541.3 | L15: 64.19
A16: =A6 -> 1 | B16: =B6 -> 1 | C16: Завтрак 2 | D16: фрукты
D19: итого | F19: =SUM(F16:F18) -> 0 | G19: =SUM(G16:G18) -> 0 | H19: 0 | I19: 0 | J19: 0 | L19: =SUM(L16:L24) -> 0
A20: =A6 -> 1 | B20: =B6 -> 1 | C20: Обед | D20: закуска
D21: 1 блюдо | E21: Щи из свежей капусты с мясными фрикадельками со сметаной | F21: 250/22/10 | G21: 6.41 | H21: 9.03 | I21: 8.43 | J21: 149.09
D22: 2 блюдо
D23: гарнир
D24: напиток | E24: Чай с сахаром | F24: 190/10 | G24: 0.07 | H24: 0.02 | I24: 10 | J24: 40
D25: хлеб бел.
D26: хлеб черн. | E26: Хлеб ржаной | F26: 30 | G26: 1.98 | H26: 0.36 | I26: 11.88 | J26: 59.4
D29: итого | F29: =SUM(F20:F28) -> 30 | G29: =SUM(G20:G28) -> 8.46 | H29: 9.41 | I29: 30.31 | J29: 248.49 | L29: 30
A30: =A6 -> 1 | B30: =B6 -> 1 | C30: Полдник | D30: булочное
D31: напиток
D34: итого | F34: =SUM(F30:F33) -> 0 | G34: =SUM(G30:G33) -> 0 | H34: 0 | I34: 0 | J34: 0 | L34: 0
A35: =A6 -> 1 | B35: =B6 -> 1 | C35: Ужин | D35: гор.блюдо
D36: гарнир
D37: напиток
D38: хлеб
D41: итого | F41: =SUM(F35:F40) -> 0 | G41: =SUM(G35:G40) -> 0 | H41: 0 | I41: 0 | J41: 0 | L41: =SUM(L35:L43) -> 0
A42: =A6 -> 1 | B42: =B6 -> 1 | C42: Ужин 2 | D42: кисломол.
D43: булочное
D44: напиток
D45: фрукты
D48: итого | F48: =SUM(F42:F47) -> 0 | G48: =SUM(G42:G47) -> 0 | H48: 0 | I48: 0 | J48: 0 | L48: =SUM(L42:L50) -> 0
A49: =A6 -> 1 | B49: =B6 -> 1 | C49: Итого за день: | F49: =F15+F19+F29+F34+F41+F48 -> 380 | G49: =G15+G19+G29+G34+G41+G48 -> 28.01 | H49: 29.57 | I49: 113.13 | J49: 789.79 | L49: =L15+L19+L29+L34+L41+L48 -> 0
A50: 1 | B50: 2 | C50: Завтрак | D50: Закуска | E50: Сыр порционно | F50: 10 | G50: 2.63 | H50: 2.66 | I50: 0 | J50: 34.33 | K50: 15
D51: гор.блюдо | E51: Гуляш из говядины | F51: 50/50 | G51: 9.45 | H51: 10.71 | I51: 22.89 | J51: 221 | K51: 160
E52: Каша гречневая рассыпчатая с маслом сливочным | F52: 150/5 | G52: 4.61 | H52: 6.32 | I52: 27.79 | J52: 207 | K52: 171
D53: гор.напиток | E53: Чай с сахаром,с лимоном | F53: 185/10/5 | G53: 0.13 | H53: 0.02 | I53: 10.2 | J53: 42 | K53: 377
D54: хлеб | E54: Хлеб пшеничный | F54: 50 | G54: 3.04 | H54: 0.32 | I54: 19.68 | J54: 94
D55: фрукты
D58: итого | F58: =SUM(F50:F57) -> 60 | G58: =SUM(G50:G57) -> 19.86 | H58: =SUM(H50:H57) -> 20.03 | I58: =SUM(I50:I57) -> 80.56 | J58: =SUM(J50:J57) -> 598.33 | L58: 64.19
A59: =A50 -> 1 | B59: =B50 -> 2 | C59: Завтрак 2 | D59: фрукты
D62: итого | F62: =SUM(F59:F61) -> 0 | G62: =SUM(G59:G61) -> 0 | H62: =SUM(H59:H61) -> 0 | I62: =SUM(I59:I61) -> 0 | J62: =SUM(J59:J61) -> 0 | L62: =SUM(L59:L67) -> 0
A63: =A50 -> 1 | B63: =B50 -> 2 | C63: Обед | D63: закуска
D64: 1 блюдо | E64: Суп картофельный с пшенной крупой на мясном бульоне с мясом говядины | F64: 250/10 | G64: 4.77 | H64: 3.09 | I64: 12.16 | J64: 100.58
D65: 2 блюдо
D66: гарнир
D67: напиток | E67: Кисель | F67: 200 | G67: 0.6 | H67: 0.1 | I67: 20.2 | J67: 83.6
D68: хлеб бел.
D69: хлеб черн. | E69: Хлеб ржаной | F69: 30 | G69: 1.98 | H69: 0.36 | I69: 11.88 | J69: 59.4
D72: итого | F72: =SUM(F63:F71) -> 230 | G72: =SUM(G63:G71) -> 7.35 | H72: =SUM(H63:H71) -> 3.55 | I72: =SUM(I63:I71) -> 44.24 | J72: =SUM(J63:J71) -> 243.58 | L72: 30
A73: =A50 -> 1 | B73: =B50 -> 2 | C73: Полдник | D73: булочное
D74: напиток
D77: итого | F77: =SUM(F73:F76) -> 0 | G77: =SUM(G73:G76) -> 0 | H77: =SUM(H73:H76) -> 0 | I77: =SUM(I73:I76) -> 0 | J77: =SUM(J73:J76) -> 0
A78: =A50 -> 1 | B78: =B50 -> 2 | C78: Ужин | D78: гор.блюдо
D79: гарнир
D80: напиток
D81: хлеб
D84: итого | F84: =SUM(F78:F83) -> 0 | G84: =SUM(G78:G83) -> 0 | H84: =SUM(H78:H83) -> 0 | I84: =SUM(I78:I83) -> 0 | J84: =SUM(J78:J83) -> 0 | L84: =SUM(L78:L86) -> 0
A85: =A50 -> 1 | B85: =B50 -> 2 | C85: Ужин 2 | D85: кисломол.
D86: булочное
D87: напиток
D88: фрукты
D91: итого | F91: =SUM(F85:F90) -> 0 | G91: =SUM(G85:G90) -> 0 | H91: =SUM(H85:H90) -> 0 | I91: =SUM(I85:I90) -> 0 | J91: =SUM(J85:J90) -> 0 | L91: =SUM(L85:L93) -> 0
A92: =A50 -> 1 | B92: =B50 -> 2 | C92: Итого за день: | F92: =F58+F62+F72+F77+F84+F91 -> 290 | G92: =G58+G62+G72+G77+G84+G91 -> 27.21 | H92: =H58+H62+H72+H77+H84+H91 -> 23.58 | I92: =I58+I62+I72+I77+I84+I91 -> 124.8 | J92: =J58+J62+J72+J77+J84+J91 -> 841.91 | L92: =L58+L62+L72+L77+L84+L91 -> 0
A93: 1 | B93: 3 | C93: Завтрак | D93: гор.блюдо | E93: Птица запеченная с томатным соусом | F93: 90/20 | G93: 12 | H93: 10.04 | I93: 8.6 | J93: 195.1 | K93: 293
E94: Рис отварной рассыпчатый с маслом сливочным | F94: 150/5 | G94: 3.74 | H94: 7.02 | I94: 39.23 | J94: 209 | K94: 304
D95: гор.напиток | E95: Чай с сахаром | F95: 190/10 | G95: 0.07 | H95: 0.02 | I95: 10 | J95: 40 | K95: 376
D96: хлеб | E96: Хлеб пшеничный | F96: 20 | G96: 1.52 | H96: 0.16 | I96: 9.84 | J96: 47
D97: хлеб | E97: Хлеб ржаной | F97: 20 | G97: 1.32 | H97: 0.24 | I97: 7.92 | J97: 39.6
D98: фрукты
D101: итого | F101: =SUM(F93:F100) -> 40 | G101: =SUM(G93:G100) -> 18.65 | H101: =SUM(H93:H100) -> 17.48 | I101: =SUM(I93:I100) -> 75.59 | J101: =SUM(J93:J100) -> 530.7 | L101: 64.19
A102: =A93 -> 1 | B102: =B93 -> 3 | C102: Завтрак 2 | D102: фрукты
D105: итого | F105: =SUM(F102:F104) -> 0 | G105: =SUM(G102:G104) -> 0 | H105: =SUM(H102:H104) -> 0 | I105: =SUM(I102:I104) -> 0 | J105: =SUM(J102:J104) -> 0 | L105: =SUM(L102:L110) -> 0
A106: =A93 -> 1 | B106: =B93 -> 3 | C106: Обед | D106: закуска
D107: 1 блюдо | E107: Суп из овощей на курином бульоне с мясом птицы со сметаной | F107: 250/10/10 | G107: 4.19 | H107: 8.34 | I107: 9.54 | J107: 137.65
D108: 2 блюдо
D109: гарнир
D110: напиток | E110: Напиток из изюма | F110: 200 | G110: 0.346 | H110: 0.076 | I110: 19.85 | J110: 82.2
D111: хлеб бел.
D112: хлеб черн. | E112: Хлеб ржаной | F112: 30 | G112: 1.98 | H112: 0.36 | I112: 11.88 | J112: 59.4
D115: итого | F115: =SUM(F106:F114) -> 230 | G115: =SUM(G106:G114) -> 6.516 | H115: =SUM(H106:H114) -> 8.776 | I115: =SUM(I106:I114) -> 41.27 | J115: =SUM(J106:J114) -> 279.25 | L115: 30
A116: =A93 -> 1 | B116: =B93 -> 3 | C116: Полдник | D116: булочное
D117: напиток
D120: итого | F120: =SUM(F116:F119) -> 0 | G120: =SUM(G116:G119) -> 0 | H120: =SUM(H116:H119) -> 0 | I120: =SUM(I116:I119) -> 0 | J120: =SUM(J116:J119) -> 0 | L120: 0
A121: =A93 -> 1 | B121: =B93 -> 3 | C121: Ужин | D121: гор.блюдо
D122: гарнир
D123: напиток
D124: хлеб
D127: итого | F127: =SUM(F121:F126) -> 0 | G127: =SUM(G121:G126) -> 0 | H127: =SUM(H121:H126) -> 0 | I127: =SUM(I121:I126) -> 0 | J127: =SUM(J121:J126) -> 0 | L127: =SUM(L121:L129) -> 0
A128: =A93 -> 1 | B128: =B93 -> 3 | C128: Ужин 2 | D128: кисломол.
D129: булочное
D130: напиток
D131: фрукты
D134: итого | F134: =SUM(F128:F133) -> 0 | G134: =SUM(G128:G133) -> 0 | H134: =SUM(H128:H133) -> 0 | I134: =SUM(I128:I133) -> 0 | J134: =SUM(J128:J133) -> 0 | L134: =SUM(L128:L137) -> 0
A135: =A93 -> 1 | B135: =B93 -> 3 | C135: Итого за день: | F135: =F101+F105+F115+F120+F127+F134 -> 270 | G135: =G101+G105+G115+G120+G127+G134 -> 25.166 | H135: =H101+H105+H115+H120+H127+H134 -> 26.256 | I135: =I101+I105+I115+I120+I127+I134 -> 116.86 | J135: =J101+J105+J115+J120+J127+J134 -> 809.95 | L135: =L101+L105+L115+L120+L127+L134 -> 0
A136: 1 | B136: 4 | C136: Завтрак | D136: закуска | E136: Салат из белокочанной капусты | F136: 60 | G136: 0.79 | H136: 1.95 | I136: 3.88 | J136: 36.24 | K136: 45
D137: гор.блюдо | E137: Рыба тушеная в томате с овощами | F137: 50/50 | G137: 9.15 | H137: 5.62 | I137: 7.8 | J137: 105 | K137: 229
E138: Пюре картофельное с маслом сливочным | F138: 150/5 | G138: 3.1 | H138: 8.43 | I138: 20.51 | J138: 170.25 | K138: 312
D139: гор.напиток | E139: Компот из свежих яблок | F139: 200 | G139: 0.16 | H139: 0.16 | I139: 13.91 | J139: 58.74 | K139: 342
D140: хлеб | E140: Хлеб пшеничный | F140: 20 | G140: 1.52 | H140: 0.16 | I140: 9.84 | J140: 47
D141: хлеб | E141: Хлеб ржаной | F141: 20 | G141: 1.32 | H141: 0.24 | I141: 7.92 | J141: 36
D142: фрукты
D145: итого | F145: =SUM(F137:F144) -> 240 | G145: =SUM(G137:G144) -> 15.25 | H145: =SUM(H137:H144) -> 14.61 | I145: =SUM(I137:I144) -> 59.98 | J145: =SUM(J137:J144) -> 416.99 | L145: 64.19
A146: =A136 -> 1 | B146: =B136 -> 4 | C146: Завтрак 2 | D146: фрукты
D149: итого | F149: =SUM(F146:F148) -> 0 | G149: =SUM(G146:G148) -> 0 | H149: =SUM(H146:H148) -> 0 | I149: =SUM(I146:I148) -> 0 | J149: =SUM(J146:J148) -> 0 | L149: =SUM(L146:L154) -> 0
A150: =A136 -> 1 | B150: =B136 -> 4 | C150: Обед | D150: закуска
D151: 1 блюдо | E151: Шулпа с говядиной и овощами | F151: 250/25 | G151: 12.04 | H151: 9.26 | I151: 18.75 | J151: 210.4
D152: 2 блюдо
D153: гарнир
D154: напиток | E154: Компот из сухофруктов | F154: 200 | G154: 0.66 | H154: 0.09 | I154: 22.03 | J154: 92.9
D155: хлеб бел.
D156: хлеб черн. | E156: Хлеб ржаной | F156: 30 | G156: 1.98 | H156: 0.36 | I156: 11.88 | J156: 59.4
D159: итого | F159: =SUM(F150:F158) -> 230 | G159: =SUM(G150:G158) -> 14.68 | H159: =SUM(H150:H158) -> 9.71 | I159: =SUM(I150:I158) -> 52.66 | J159: =SUM(J150:J158) -> 362.7 | L159: 30
A160: =A136 -> 1 | B160: =B136 -> 4 | C160: Полдник | D160: булочное
D161: напиток
D164: итого | F164: =SUM(F160:F163) -> 0 | G164: =SUM(G160:G163) -> 0 | H164: =SUM(H160:H163) -> 0 | I164: =SUM(I160:I163) -> 0 | J164: =SUM(J160:J163) -> 0 | L164: 0
A165: =A136 -> 1 | B165: =B136 -> 4 | C165: Ужин | D165: гор.блюдо
D166: гарнир
D167: напиток
D168: хлеб
D171: итого | F171: =SUM(F165:F170) -> 0 | G171: =SUM(G165:G170) -> 0 | H171: =SUM(H165:H170) -> 0 | I171: =SUM(I165:I170) -> 0 | J171: =SUM(J165:J170) -> 0 | L171: =SUM(L165:L173) -> 0
A172: =A136 -> 1 | B172: =B136 -> 4 | C172: Ужин 2 | D172: кисломол.
D173: булочное
D174: напиток
D175: фрукты
D178: итого | F178: =SUM(F172:F177) -> 0 | G178: =SUM(G172:G177) -> 0 | H178: =SUM(H172:H177) -> 0 | I178: =SUM(I172:I177) -> 0 | J178: =SUM(J172:J177) -> 0 | L178: =SUM(L172:L181) -> 0
A179: =A136 -> 1 | B179: =B136 -> 4 | C179: Итого за день: | F179: =F145+F149+F159+F164+F171+F178 -> 470 | G179: =G145+G149+G159+G164+G171+G178 -> 29.93 | H179: =H145+H149+H159+H164+H171+H178 -> 24.32 | I179: =I145+I149+I159+I164+I171+I178 -> 112.64 | J179: =J145+J149+J159+J164+J171+J178 -> 779.69 | L179: =L145+L149+L159+L164+L171+L178 -> 0
A180: 1 | B180: 5 | C180: Завтрак | D180: Закуска | E180: Сыр порционно | F180: 10 | G180: 2.63 | H180: 2.66 | I180: 0 | J180: 34.33 | K180: 15
D181: гор.блюдо | E181: Тефтели мясные в сметанно-томатном соусе | F181: 60/40 | G181: 7.284 | H181: 11.94 | I181: 8.36 | J181: 123.99 | K181: 279
E182: Каша гречневая рассыпчатая | F182: 150 | G182: 4.57 | H182: 1.23 | I182: 27.73 | J182: 174 | K182: 171
D183: гор.напиток | E183: Чай с сахаром,с лимоном | F183: 185/10/5 | G183: 0.13 | H183: 0.02 | I183: 10.2 | J183: 42 | K183: 377
D184: хлеб
D185: фрукты | E185: Яблоки | F185: 100 | G185: 0.4 | H185: 0.4 | I185: 9.8 | J185: 47
D188: итого | F188: =SUM(F181:F187) -> 250 | G188: =SUM(G181:G187) -> 12.384 | H188: =SUM(H181:H187) -> 13.59 | I188: =SUM(I181:I187) -> 56.09 | J188: =SUM(J181:J187) -> 386.99 | L188: 64.19
A189: =A180 -> 1 | B189: =B180 -> 5 | C189: Завтрак 2 | D189: фрукты
D192: итого | F192: =SUM(F189:F191) -> 0 | G192: =SUM(G189:G191) -> 0 | H192: =SUM(H189:H191) -> 0 | I192: =SUM(I189:I191) -> 0 | J192: =SUM(J189:J191) -> 0 | L192: =SUM(L189:L197) -> 0
A193: =A180 -> 1 | B193: =B180 -> 5 | C193: Обед | D193: закуска
D194: 1 блюдо | E194: Рассольник Ленинградский с мясными фрикадельками со сметаной | F194: 250/22/10 | G194: 6.67 | H194: 9.17 | I194: 12.5 | J194: 166.59
D195: 2 блюдо
D196: гарнир
D197: напиток | E197: Напиток из шиповника | F197: 200 | G197: 0.678 | H197: 0.278 | I197: 10.76 | J197: 48.2
D198: хлеб бел.
D199: хлеб черн. | E199: Хлеб ржаной | F199: 30 | G199: 1.98 | H199: 0.36 | I199: 11.88 | J199: 59.4
D202: итого | F202: =SUM(F193:F201) -> 230 | G202: =SUM(G193:G201) -> 9.328 | H202: =SUM(H193:H201) -> 9.808 | I202: =SUM(I193:I201) -> 35.14 | J202: =SUM(J193:J201) -> 274.19 | L202: 30
A203: =A180 -> 1 | B203: =B180 -> 5 | C203: Полдник | D203: булочное
D204: напиток
D207: итого | F207: =SUM(F203:F206) -> 0 | G207: =SUM(G203:G206) -> 0 | H207: =SUM(H203:H206) -> 0 | I207: =SUM(I203:I206) -> 0 | J207: =SUM(J203:J206) -> 0 | L207: 0
A208: =A180 -> 1 | B208: =B180 -> 5 | C208: Ужин | D208: гор.блюдо
D209: гарнир
D210: напиток
D211: хлеб
D214: итого | F214: =SUM(F208:F213) -> 0 | G214: =SUM(G208:G213) -> 0 | H214: =SUM(H208:H213) -> 0 | I214: =SUM(I208:I213) -> 0 | J214: =SUM(J208:J213) -> 0 | L214: =SUM(L208:L216) -> 0
A215: =A180 -> 1 | B215: =B180 -> 5 | C215: Ужин 2 | D215: кисломол.
D216: булочное
D217: напиток
D218: фрукты
D221: итого | F221: =SUM(F215:F220) -> 0 | G221: =SUM(G215:G220) -> 0 | H221: =SUM(H215:H220) -> 0 | I221: =SUM(I215:I220) -> 0 | J221: =SUM(J215:J220) -> 0 | L221: =SUM(L215:L224) -> 0
A222: =A180 -> 1 | B222: =B180 -> 5 | C222: Итого за день: | F222: =F188+F192+F202+F207+F214+F221 -> 480 | G222: =G188+G192+G202+G207+G214+G221 -> 21.712 | H222: =H188+H192+H202+H207+H214+H221 -> 23.398 | I222: =I188+I192+I202+I207+I214+I221 -> 91.23 | J222: =J188+J192+J202+J207+J214+J221 -> 661.18 | L222: =L188+L192+L202+L207+L214+L221 -> 0
A223: 1 | B223: 6 | C223: Завтрак | D223: Закуска | E223: Салат из моркови с сахаром | F223: 60 | G223: 0.74 | H223: 0.06 | I223: 6.58 | J223: 49.02
D224: гор.блюдо | E224: Сосиска говяжья | F224: 100 | G224: 10.7 | H224: 13.4 | I224: 11.36 | J224: 201.12
E225: Гороховое пюре с маслом сливочным | F225: 150/5 | G225: 5.62 | H225: 5.04 | I225: 34.99 | J225: 208.5
D226: гор.напиток | E226: Чай с мармеладом | F226: 190/10 | G226: 0.09 | H226: 0.02 | I226: 11.91 | J226: 48.15
D227: хлеб | E227: Хлеб пшеничный | F227: 30 | G227: 2.28 | H227: 0.24 | I227: 14.76 | J227: 71
D228: фрукты
D231: итого | F231: =SUM(F224:F230) -> 130 | G231: =SUM(G224:G230) -> 18.69 | H231: =SUM(H224:H230) -> 18.7 | I231: =SUM(I224:I230) -> 73.02 | J231: =SUM(J224:J230) -> 528.77 | L231: 64.19
A232: =A223 -> 1 | B232: =B223 -> 6 | C232: Завтрак 2 | D232: фрукты
D235: итого | F235: =SUM(F232:F234) -> 0 | G235: =SUM(G232:G234) -> 0 | H235: =SUM(H232:H234) -> 0 | I235: =SUM(I232:I234) -> 0 | J235: =SUM(J232:J234) -> 0 | L235: =SUM(L232:L240) -> 0
A236: =A223 -> 1 | B236: =B223 -> 6 | C236: Обед | D236: закуска
D237: 1 блюдо | E237: Суп картофельный с клецками и мясом птицы | F237: 250/10 | G237: 5.9 | H237: 6.45 | I237: 18.83 | J237: 170.45
D238: 2 блюдо
D239: гарнир
D240: напиток | E240: Компот из изюма и яблок | F240: 200 | G240: 0.38 | H240: 0.13 | I240: 29.03 | J240: 119.94
D241: хлеб бел.
D242: хлеб черн. | E242: Хлеб ржаной | F242: 30 | G242: 1.98 | H242: 0.36 | I242: 11.88 | J242: 59.4
D245: итого | F245: =SUM(F236:F244) -> 230 | G245: =SUM(G236:G244) -> 8.26 | H245: =SUM(H236:H244) -> 6.94 | I245: =SUM(I236:I244) -> 59.74 | J245: =SUM(J236:J244) -> 349.79 | L245: 30
A246: =A223 -> 1 | B246: =B223 -> 6 | C246: Полдник | D246: булочное
D247: напиток
D250: итого | F250: =SUM(F246:F249) -> 0 | G250: =SUM(G246:G249) -> 0 | H250: =SUM(H246:H249) -> 0 | I250: =SUM(I246:I249) -> 0 | J250: =SUM(J246:J249) -> 0 | L250: 0
A251: =A223 -> 1 | B251: =B223 -> 6 | C251: Ужин | D251: гор.блюдо
D252: гарнир
D253: напиток
D254: хлеб
D257: итого | F257: =SUM(F251:F256) -> 0 | G257: =SUM(G251:G256) -> 0 | H257: =SUM(H251:H256) -> 0 | I257: =SUM(I251:I256) -> 0 | J257: =SUM(J251:J256) -> 0 | L257: =SUM(L251:L259) -> 0
A258: =A223 -> 1 | B258: =B223 -> 6 | C258: Ужин 2 | D258: кисломол.
D259: булочное
D260: напиток
D261: фрукты
D264: итого | F264: =SUM(F258:F263) -> 0 | G264: =SUM(G258:G263) -> 0 | H264: =SUM(H258:H263) -> 0 | I264: =SUM(I258:I263) -> 0 | J264: =SUM(J258:J263) -> 0 | L264: =SUM(L258:L266) -> 0
A265: =A223 -> 1 | B265: =B223 -> 6 | C265: Итого за день: | F265: =F231+F235+F245+F250+F257+F264 -> 360 | G265: =G231+G235+G245+G250+G257+G264 -> 26.95 | H265: =H231+H235+H245+H250+H257+H264 -> 25.64 | I265: =I231+I235+I245+I250+I257+I264 -> 132.76 | J265: =J231+J235+J245+J250+J257+J264 -> 878.56 | L265: =L231+L235+L245+L250+L257+L264 -> 0
A266: 1 | B266: 7 | C266: Завтрак | D266: гор.блюдо
D268: гор.напиток
D269: хлеб
D270: фрукты
D273: итого | F273: =SUM(F266:F272) -> 0 | G273: =SUM(G266:G272) -> 0 | H273: =SUM(H266:H272) -> 0 | I273: =SUM(I266:I272) -> 0 | J273: =SUM(J266:J272) -> 0 | L273: =SUM(L266:L272) -> 0
A274: =A266 -> 1 | B274: =B266 -> 7 | C274: Завтрак 2 | D274: фрукты
D277: итого | F277: =SUM(F274:F276) -> 0 | G277: =SUM(G274:G276) -> 0 | H277: =SUM(H274:H276) -> 0 | I277: =SUM(I274:I276) -> 0 | J277: =SUM(J274:J276) -> 0 | L277: =SUM(L274:L282) -> 0
... 237 more rows
